bitfinex-derivatives/quotes_ETHF0:USTF0_20251126
["timestamp","ask_amount","ask_price","bid_price","bid_amount"]
[1764187422981,0.16546,3022.6,3022.5,0.7738]
[1764187423181,0.16546,3022.6,3022.5,0.2839]
[1764187423482,0.16546,3022.6,3022.5,0.28759527]
[1764187423789,0.16853012,3022.6,3022.5,0.28759527]
[1764187424287,0.16853012,3022.6,3022.5,0.77749527]
[1764187424881,0.16853012,3022.6,3022.5,0.28759527]
[1764187425279,0.16853012,3022.6,3022.5,0.77749527]
[1764187426380,0.00307012,3022.6,3022.5,0.77749527]
[1764187428389,0.16547,3022.5,3021.5,0.2862]
[1764187428592,2.45824963,3022.2,3021.5,0.2862]
[1764187428984,2.62373963,3022.2,3021.5,0.2862]
[1764187429183,2.45824963,3022.2,3021.5,0.2862]
[1764187429398,2.45824963,3022.2,3022.0,0.28627679]
[1764187429892,0.78699658,3022.1,3022.0,0.28627679]
[1764187430288,0.78699658,3022.1,3022.0,0.77617679]
[1764187430489,0.95248658,3022.1,3022.0,0.77617679]
[1764187431888,0.00495778,3022.4,3022.3,0.4899]
[1764187432301,0.95746893,3022.4,3022.3,0.4899]
[1764187432491,0.95746893,3022.4,3022.0,0.28627679]
[1764187432694,0.78704115,3022.3,3022.0,0.28627679]
[1764187433306,0.78704115,3022.3,3022.2,0.4899]
[1764187438098,0.65053012,3022.6,3022.5,0.2862]
[1764187438402,3.10877975,3022.6,3022.0,0.28627679]
[1764187438900,2.62677975,3022.6,3022.5,0.7761]
[1764187439090,3.10877975,3022.6,3022.5,0.2862]
[1764187439299,0.482,3022.3,3022.2,0.00495778]
[1764187439900,0.482,3022.3,3022.2,0.49485778]
[1764187440303,0.482,3022.3,3022.2,0.00495778]
[1764187440606,2.42907341,3022.3,3022.2,0.00495778]
[1764187441398,0.482,3021.6,3021.5,0.2862]
[1764187441596,0.482,3021.6,3021.5,0.7761]
[1764187441900,2.45824963,3021.9,3021.5,0.7761]
[1764187442294,0.482,3021.6,3021.5,0.2862]
[1764187442490,0.482,3021.6,3021.5,0.29041325]
[1764187442901,3.63742043,3021.9,3021.5,0.78031325]
[1764187443402,1.1791708,3021.8,3021.5,0.78031325]
[1764187443801,1.1791708,3021.8,3021.7,0.4899]
[1764187444001,1.1791708,3021.9,3021.8,0.4899]
[1764187444606,1.76875621,3022.1,3021.8,0.4899]
[1764187444806,0.482,3021.9,3021.8,0.4899]
[1764187445206,1.66387595,3021.9,3021.8,0.4899]
[1764187445411,1.66403089,3021.9,3021.8,0.4899]
[1764187446108,1.66403898,3021.9,3021.8,0.4899]
[1764187446507,0.482,3021.9,3021.8,0.4899]
[1764187448210,0.4764,3021.6,3021.5,0.00421325]
[1764187448511,0.4764,3021.6,3021.5,0.74601325]
[1764187449217,1.65916008,3021.6,3021.5,0.74601325]
[1764187449611,1.65916008,3021.6,3021.5,0.00421325]
[1764187450010,2.44752838,3021.6,3021.5,0.74601325]
[1764187450211,2.44752838,3021.6,3021.5,0.29161325]
[1764187451212,1.2647683,3021.6,3021.5,0.29161325]
[1764187451403,2.44880703,3021.6,3021.5,0.29161325]
[1764187451612,2.44880703,3021.6,3021.5,0.74601325]
[1764187452115,2.05146561,3021.6,3021.5,0.74601325]
[1764187452420,2.63618309,3021.6,3021.5,0.00421325]
[1764187452815,0.86742688,3021.6,3021.5,0.29161325]
[1764187453512,0.86742688,3021.6,3021.5,0.00421325]
[1764187453715,0.86742688,3021.6,3021.5,0.74601325]
[1764187454213,2.64422223,3021.6,3021.5,0.74601325]
[1764187454513,2.80973223,3021.6,3021.5,0.74601325]
[1764187455308,2.80973223,3021.6,3020.5,0.61477]
[1764187455309,6.7883683,3021.6,3020.5,0.2862]
[1764187455516,0.3571,3020.6,3020.5,0.7406]
[1764187455708,0.7883683,3020.6,3020.5,0.7406]
[1764187456106,1.1833431,3020.9,3020.8,0.4544]
[1764187456412,1.97153333,3020.9,3020.8,0.45771071]
[1764187456615,2.32863333,3020.9,3020.8,0.45771071]
[1764187456816,1.97153333,3020.9,3020.8,0.45771071]
[1764187457817,2.32863333,3020.9,3020.8,0.45771071]
[1764187458218,1.14529023,3020.9,3020.8,0.45771071]
[1764187459416,0.78819023,3020.9,3020.8,0.45771071]
[1764187459720,0.00495778,3021.4,3021.3,0.4544]
[1764187459919,0.36205778,3021.4,3021.0,0.2874]
[1764187460814,0.36205778,3021.4,3021.3,0.4544]
[1764187460815,0.00495778,3021.4,3021.3,0.4544]
[1764187462114,1.5404431,3021.6,3021.5,0.2874]
[1764187462519,1.1833431,3021.7,3021.6,0.4544]
[1764187462715,1.1833431,3022.1,3021.8,0.4544]
[1764187463016,1.1833431,3022.1,3022.0,0.7418]
[1764187463017,1.5404431,3022.1,3022.0,0.7418]
[1764187463414,1.5404431,3022.1,3022.0,0.2874]
[1764187463612,0.3571,3021.7,3021.6,0.00495778]
[1764187463812,1.3488331,3022.1,3022.0,0.7418]
[1764187464014,1.18830088,3022.3,3022.2,0.4544]
[1764187464217,0.00495778,3022.3,3022.2,0.4544]
[1764187466816,0.00307012,3022.6,3022.5,0.7418]
[1764187470423,1.1833431,3023.4,3023.3,0.4544]
[1764187470620,1.1833431,3023.7,3023.5,0.2874]
[1764187470817,3.32419364,3023.6,3023.5,0.2874]
[1764187471019,0.3621,3023.1,3022.5,0.2874]
[1764187471214,0.16542,3023.3,3023.2,0.4544]
[1764187471413,0.53103388,3023.3,3023.2,0.00357587]
[1764187471820,1.31861847,3023.3,3023.2,0.00357587]
[1764187472624,0.3621,3023.0,3022.9,0.00495778]
[1764187472831,1.14968459,3023.0,3022.9,0.00495778]
[1764187473225,1.31512459,3023.0,3022.9,0.00495778]
[1764187473434,1.56102459,3023.0,3022.9,0.00495778]
[1764187473634,1.56102459,3023.0,3022.9,0.00751473]
[1764187474425,2.74311401,3023.0,3022.9,0.00751473]
[1764187475135,1.56102459,3023.0,3022.9,0.00751473]
[1764187475726,2.74311401,3023.0,3022.9,0.00751473]
[1764187476235,1.56009613,3023.0,3022.9,0.00751473]
[1764187477131,1.56009613,3023.0,3021.5,1.20892]
[1764187477132,0.16546,3022.7,3021.5,1.20892]
[1764187477334,0.78665613,3022.6,3021.5,1.20892]
[1764187477534,0.16546,3022.6,3021.5,1.20892]
[1764187477926,0.78607534,3022.5,3021.5,1.20892]
[1764187478229,0.16546,3022.6,3022.0,0.29662349]
[1764187478430,0.95149441,3022.5,3022.0,0.29662349]
[1764187478626,0.16547,3022.5,3022.0,0.29662349]
[1764187479635,0.16547,3022.4,3022.0,0.29662349]
[1764187479836,0.351,3022.1,3022.0,0.76562349]
[1764187480545,0.351,3022.1,3022.0,0.29662349]
[1764187480831,3.31317364,3022.1,3022.0,0.00922349]
[1764187481137,4.09896185,3022.1,3022.0,0.00922349]
[1764187481530,1.30227821,3022.1,3022.0,0.29262349]
[1764187482827,1.30227821,3022.1,3022.0,0.00922349]
[1764187485137,1.30227821,3022.1,3022.0,0.29262349]
[1764187485336,1.30227821,3022.1,3022.0,0.00922349]
[1764187487247,1.30227821,3022.1,3022.0,0.76162349]
[1764187488747,0.78578821,3022.1,3022.0,0.76162349]
[1764187489447,1.13678821,3022.1,3022.0,0.76162349]
[1764187490446,1.13678821,3022.1,3022.0,0.00922349]
[1764187490839,0.351,3021.6,3021.5,0.2874]
[1764187491036,0.51651,3021.6,3021.5,0.2874]
[1764187491244,0.16552,3021.5,3021.0,0.2874]
[1764187491443,0.78578821,3021.4,3021.0,0.2874]
[1764187491844,0.78578821,3021.4,3021.0,0.28981043]
[1764187492950,0.78578821,3021.4,3021.3,0.469]
[1764187493252,0.78578821,3021.4,3021.0,0.28981043]
[1764187493253,1.13678821,3021.4,3021.0,0.28981043]
[1764187493453,0.351,3021.1,3021.0,0.75881043]
[1764187493640,0.3549588,3021.1,3021.0,0.75881043]
[1764187493841,0.0039588,3021.1,3021.0,0.75881043]
[1764187495554,1.30682572,3021.1,3021.0,0.28981043]
[1764187496053,1.30682572,3021.1,3021.0,0.75881043]
[1764187497957,0.95582572,3021.1,3021.0,0.75881043]
[1764187498558,1.30682572,3021.1,3021.0,0.28981043]
[1764187498752,1.30682572,3021.1,3021.0,0.75881043]
[1764187500457,0.95582572,3021.1,3021.0,0.75881043]
[1764187500659,0.95582572,3021.1,3020.9,0.00495778]
[1764187500660,1.30682572,3021.1,3020.9,0.00495778]
[1764187500958,1.30682572,3021.1,3020.5,0.2834]
[1764187500959,2.56530037,3021.1,3020.5,0.2834]
[1764187501145,1.69971091,3021.1,3021.0,0.2834]
[1764187501345,1.30653293,3021.1,3021.0,0.2834]
[1764187501656,0.51657,3020.6,3019.5,2.6464]
[1764187501850,0.16557,3020.6,3020.5,0.7524]
[1764187502050,0.95132279,3020.6,3020.5,0.7524]
[1764187502251,0.16558,3020.5,3020.0,0.28600481]
[1764187502564,0.16563,3019.5,3019.1,0.25859153]
[1764187502747,0.78531026,3019.4,3019.0,0.2834]
[1764187502952,0.00496639,3019.6,3019.5,0.7524]
[1764187503559,0.79113479,3019.6,3019.5,0.7564875]
[1764187504258,0.79077445,3019.6,3019.5,0.7564875]
[1764187504464,0.00496639,3019.6,3019.5,0.7564875]
[1764187505057,0.35596639,3019.6,3019.5,0.0040875]
[1764187505461,1.14165093,3019.6,3019.0,0.2834]
[1764187505660,0.35596639,3019.6,3019.0,0.2834]
[1764187505862,0.78567193,3019.5,3019.0,0.2834]
[1764187506061,0.17058639,3019.6,3019.0,0.2834]
[1764187506561,0.17058639,3019.6,3019.0,0.28673957]
[1764187506761,0.3508,3019.1,3019.0,0.28673957]
[1764187507157,0.16564,3019.3,3019.2,0.4929]
[1764187507365,0.00496639,3019.6,3019.5,0.7839]
[1764187507560,0.35586639,3019.6,3019.0,0.28673957]
[1764187508067,0.52149639,3019.6,3019.0,0.28673957]
[1764187508261,0.78771534,3019.5,3019.0,0.28673957]
[1764187508460,0.17059639,3019.6,3019.0,0.28673957]
[1764187508671,0.17059639,3019.6,3019.5,0.7839]
[1764187508867,0.52149639,3019.6,3019.5,0.291]
[1764187509061,0.16563,3019.5,3019.0,0.28673957]
[1764187509367,0.3509,3019.1,3019.0,0.28673957]
[1764187509757,0.16565,3019.2,3019.1,0.4929]
[1764187509960,0.3509,3019.1,3019.0,0.28673957]
[1764187510161,0.3509,3019.1,3019.0,0.77963957]
[1764187510664,0.16565,3019.2,3019.0,0.77963957]
[1764187510971,0.16565,3019.2,3019.1,0.4929]
[1764187511758,0.35586639,3019.6,3019.5,0.291]
[1764187511965,0.79215951,3019.6,3019.5,0.7839]
[1764187512274,0.00496639,3019.6,3019.5,0.7839]
[1764187512672,0.35586639,3019.6,3019.5,0.7839]
[1764187512876,1.14304374,3019.6,3019.5,0.291]
[1764187513065,0.16563,3019.5,3019.0,0.28673957]
[1764187514465,0.16564,3019.4,3019.0,0.28673957]
[1764187514872,0.51654,3019.4,3019.3,0.4929]
[1764187515369,0.16564,3019.4,3019.3,0.4929]
[1764187516372,0.00496639,3019.6,3019.5,0.7839]
[1764187516572,0.35586639,3019.6,3019.5,0.7839]
[1764187516762,1.14299811,3019.6,3019.5,0.7839]
[1764187517267,1.30861811,3019.6,3019.5,0.7839]
[1764187519174,0.52148639,3019.6,3019.5,0.7839]
[1764187519372,1.30932292,3019.6,3019.5,0.7839]
[1764187519966,1.30932292,3019.6,3019.5,0.291]
[1764187520169,0.79280292,3019.6,3019.0,0.28673957]
[1764187520374,0.16565,3019.2,3019.1,0.4929]
[1764187521573,0.51655,3019.2,3019.1,0.4929]
[1764187521772,0.51655,3019.1,3019.0,0.00333957]
[1764187521977,0.51655,3019.1,3017.5,0.291]
[1764187521978,0.16572,3017.9,3017.8,0.4929]
[1764187522274,3.77557325,3017.9,3017.8,0.4929]
[1764187522872,3.77974208,3017.9,3017.8,0.49676121]
[1764187523065,3.42884208,3017.9,3017.8,0.49676121]
[1764187524075,3.26312208,3017.9,3017.8,0.49676121]
[1764187524270,0.79289234,3017.9,3017.8,0.49676121]
[1764187524972,2.47439857,3017.9,3017.8,0.49676121]
[1764187525182,3.599006,3017.9,3017.8,0.49676121]
[1764187525572,1.17502595,3018.4,3018.3,0.4929]
[1764187525877,0.4555,3018.6,3018.5,0.4929]
[1764187526071,0.4555,3018.6,3018.0,0.291]
[1764187526774,0.45794989,3018.6,3018.0,0.291]
[1764187526979,0.00244989,3018.6,3018.5,0.7839]
[1764187527480,4.989e-05,3018.6,3018.5,0.7839]
[1764187527680,0.16564,3019.3,3019.2,0.4929]
[1764187528082,0.62114,3019.3,3019.2,0.4929]
[1764187528378,0.16564,3019.3,3019.2,0.4929]
[1764187528579,0.16825531,3019.3,3019.2,0.4929]
[1764187529885,0.00261531,3019.3,3019.2,0.4929]
[1764187532782,0.00496639,3019.6,3019.5,0.7839]
[1764187532990,1.34062595,3020.1,3020.0,0.7839]
[1764187533291,0.1656,3020.1,3020.0,0.7839]
[1764187533590,1.17502595,3020.5,3020.4,0.4929]
[1764187533788,1.17502595,3020.6,3020.5,0.7839]
[1764187533986,3.81082569,3020.7,3020.6,0.4929]
[1764187534187,2.63913738,3020.7,3020.6,0.4929]
[1764187534379,0.62108,3020.5,3020.4,0.00395592]
[1764187535388,0.89358,3020.5,3020.4,0.00395592]
[1764187536397,0.62108,3020.5,3020.4,0.00395592]
[1764187537392,0.63149,3020.2,3020.1,0.00496639]
[1764187537694,3.87115524,3020.2,3020.1,0.00496639]
[1764187538393,3.87115524,3020.2,3020.1,0.00793136]
[1764187539497,0.16562,3019.8,3018.5,0.60068]
[1764187539804,0.16563,3019.6,3018.5,0.60068]
[1764187539992,0.76910675,3019.5,3018.5,0.60068]
[1764187540192,0.16563,3019.6,3018.5,0.60068]
[1764187540399,0.76915152,3019.5,3018.5,0.60068]
[1764187540597,0.16563,3019.6,3019.0,0.29373316]
[1764187540800,0.76915099,3019.5,3019.0,0.29373316]
[1764187541104,0.16563,3019.6,3019.5,0.7656]
[1764187541300,0.63153,3019.6,3019.5,0.4735]
[1764187541496,1.40053768,3019.6,3019.0,0.29373316]
[1764187541696,0.63153,3019.6,3019.0,0.29373316]
[1764187541896,0.16563,3019.5,3019.0,0.29373316]
[1764187543007,0.16563,3019.5,3019.4,0.4735]
[1764187543400,2.63582974,3020.1,3019.5,0.2921]
[1764187543693,0.93459938,3020.0,3019.9,0.4735]
[1764187544707,1.40049938,3020.0,3019.5,0.2921]
[1764187544902,0.76899938,3019.9,3019.5,0.2921]
[1764187545095,0.76899938,3019.8,3019.7,0.4735]
[1764187545906,0.1656,3020.0,3019.9,0.4735]
[1764187546106,0.16890764,3020.7,3020.3,0.4735]
[1764187546295,0.4659,3020.4,3020.3,0.4735]
[1764187546498,1.23502557,3020.4,3020.0,0.2921]
[1764187546699,0.76912557,3020.3,3020.0,0.2921]
[1764187547099,2.63580974,3020.4,3020.0,0.2921]
[1764187547300,2.63580974,3020.4,3020.3,0.4735]
[1764187547512,0.9346782,3020.4,3020.3,0.4735]
[1764187547807,0.93467328,3020.4,3020.3,0.4735]
[1764187548109,0.16558,3020.4,3020.3,0.4735]
[1764187548608,0.16558,3020.4,3019.6,3.793]
[1764187548609,0.4659,3020.1,3019.6,3.793]
[1764187548901,0.4659,3020.1,3019.5,0.2921]
[1764187549307,0.4659,3020.1,3020.0,0.4735]
[1764187549511,2.47022974,3020.3,3019.5,0.2921]
[1764187549709,0.76855427,3020.2,3019.5,0.2921]
[1764187549910,2.47022974,3020.3,3019.5,0.2921]
[1764187550106,2.63583974,3019.9,3019.5,0.2921]
[1764187550306,0.4659,3019.6,3019.5,0.4735]
[1764187551209,0.63152,3019.6,3019.0,0.29373316]
[1764187551406,2.47022974,3019.5,3019.4,0.4735]
[1764187551609,0.16562,3019.6,3019.5,0.7656]
[1764187552210,0.63152,3019.6,3019.0,0.29373316]
[1764187552909,0.2725,3020.0,3019.0,0.29373316]
[1764187553098,0.4659,3019.1,3019.0,0.76723316]
[1764187553303,2.47022974,3019.3,3019.0,0.76723316]
[1764187553510,2.93612974,3019.3,3019.2,0.4735]
[1764187553910,0.4659,3019.1,3019.0,0.29373316]
[1764187554204,2.63586974,3019.3,3019.2,0.4735]
[1764187554408,3.10176974,3019.3,3019.2,0.4735]
[1764187554810,3.87096495,3019.3,3019.2,0.4735]
[1764187555115,0.4659,3019.1,3019.0,0.00273316]
[1764187555312,1.23509521,3019.1,3019.0,0.00273316]
[1764187555811,1.40074521,3019.1,3019.0,0.00273316]
[1764187556813,1.40074521,3019.1,3019.0,0.47623316]
[1764187557410,1.40074521,3019.1,3019.0,0.00273316]
[1764187557615,0.16566,3018.9,3018.0,0.2921]
[1764187557820,2.63591974,3018.5,3018.0,0.2921]
[1764187558006,1.23509521,3018.4,3018.0,0.2921]
[1764187558206,0.4659,3018.1,3017.0,2.06851971]
[1764187558615,0.46966744,3018.1,3017.5,0.59612733]
[1764187558816,0.00376744,3018.1,3018.0,0.7656]
[1764187559008,0.00376744,3018.1,3017.5,0.59612733]
[1764187559009,0.46966744,3018.1,3017.5,0.59612733]
[1764187559315,0.46966744,3018.1,3018.0,0.4735]
[1764187559702,1.23930008,3018.1,3018.0,0.4735]
[1764187559909,1.23930008,3018.1,3017.5,0.29512733]
[1764187560105,0.76963264,3018.0,3017.5,0.29512733]
[1764187560311,0.76963264,3018.0,3017.9,0.4735]
[1764187560507,3.70576238,3018.0,3017.5,0.29512733]
[1764187560716,0.4659,3017.6,3017.5,0.00302733]
[1764187560911,0.16947744,3018.1,3017.5,0.76862733]
[1764187561117,1.04236422,3018.0,3017.5,0.76862733]
[1764187561420,0.76986422,3017.9,3017.5,0.76862733]
[1764187561616,0.2725,3018.0,3017.5,0.76862733]
[1764187561816,0.4659,3017.9,3017.8,0.4735]
[1764187562518,0.4659,3017.9,3017.5,0.29512733]
[1764187562715,0.4659,3017.6,3017.5,0.47652733]
[1764187562918,2.47399718,3018.1,3017.5,0.76862733]
[1764187563119,0.76808811,3018.0,3017.5,0.76862733]
[1764187563320,2.47399718,3018.1,3017.5,0.76862733]
[1764187563912,0.00376744,3018.1,3018.0,0.7656]
[1764187564520,0.46966744,3018.1,3017.5,0.29512733]
[1764187564912,2.47022974,3018.0,3017.5,0.29512733]
[1764187565313,2.74872974,3018.0,3017.5,0.29512733]
[1764187565716,0.471,3017.6,3017.5,0.29512733]
[1764187566021,2.74872974,3018.0,3017.5,0.76202733]
[1764187566912,0.00376744,3018.1,3017.5,0.76202733]
[1764187567321,2.75062974,3018.0,3017.5,0.76202733]
[1764187569626,0.4611,3017.6,3017.5,0.76202733]
[1764187569823,2.93132974,3017.6,3017.5,0.00302733]
[1764187570319,3.09706974,3017.6,3016.5,0.2921]
[1764187570525,2.47022974,3017.1,3016.5,0.2921]
[1764187570822,0.16577,3016.9,3016.5,0.2921]
[1764187571421,0.16577,3016.9,3016.8,0.472]
[1764187572428,0.62687,3016.9,3016.8,0.472]
[1764187573222,0.16577,3016.9,3016.8,0.472]
[1764187576230,0.00496639,3017.1,3017.0,0.7623]
[1764187576430,0.46606639,3017.1,3016.5,0.29607746]
[1764187576625,0.00496639,3017.1,3016.5,0.29607746]
[1764187577226,0.2804,3017.0,3016.5,0.29607746]
[1764187577430,0.00496639,3017.1,3016.5,0.29607746]
[1764187578534,0.16577,3016.9,3016.8,0.472]
[1764187578730,0.62687,3016.9,3016.8,0.472]
[1764187579232,0.16577,3016.9,3016.8,0.472]
[1764187580232,0.00496639,3017.1,3017.0,0.7623]
[1764187581225,0.46606639,3017.1,3016.5,0.29607746]
[1764187581427,0.63182639,3017.1,3016.5,0.29607746]
[1764187581726,0.62687,3017.0,3016.9,0.472]
[1764187581934,0.4611,3016.6,3016.5,0.76807746]
[1764187582126,0.62689,3016.6,3016.5,0.00397746]
[1764187582828,2.80500998,3016.8,3015.6,0.11763099]
[1764187582829,0.2804,3016.5,3015.6,0.11763099]
[1764187583030,0.4611,3015.7,3015.6,0.11763099]
[1764187583226,0.62694,3015.7,3015.6,0.11763099]
[1764187583934,0.62694,3015.7,3015.0,0.2903]
[1764187583935,2.97488268,3015.7,3015.0,0.2903]
[1764187584235,0.4611,3015.1,3014.5,0.2903]
[1764187584431,0.46607495,3015.1,3014.5,0.2903]
[1764187584624,0.46607495,3015.1,3015.0,0.472]
[1764187584829,0.00497495,3015.1,3015.0,0.47618728]
[1764187585137,0.46607495,3015.1,3015.0,0.00418728]
[1764187585846,0.63194495,3015.1,3015.0,0.00418728]
[1764187586025,0.2804,3015.0,3013.3,0.049]
[1764187586232,2.80500998,3014.7,3013.3,0.049]
[1764187586539,0.1659,3014.7,3013.3,0.049]
[1764187587130,0.2804,3014.5,3013.3,0.05314799]
[1764187587531,0.1659,3014.7,3013.3,0.05314799]
[1764187587532,0.1659,3014.7,3014.4,0.472]
[1764187587829,0.7415,3014.5,3013.5,0.2259]
[1764187588030,0.7415,3014.5,3013.3,0.00414799]
[1764187588738,0.2804,3014.5,3014.4,0.472]
[1764187588947,0.2804,3015.0,3014.4,0.472]
[1764187589134,0.78417484,3014.9,3014.4,0.472]
[1764187589336,0.78417484,3014.8,3014.4,0.472]
[1764187589535,0.7415,3014.5,3013.5,0.1272]
[1764187591138,0.7415,3014.5,3013.3,0.00414799]
[1764187591644,0.2804,3015.0,3014.4,0.472]
[1764187591844,0.7415,3014.5,3013.5,0.1272]
[1764187592043,0.2804,3015.0,3014.4,0.472]
[1764187592239,0.78399956,3014.9,3014.4,0.472]
[1764187592541,0.2804,3015.0,3014.4,0.472]
[1764187593047,0.7836934,3014.9,3014.4,0.472]
[1764187593252,0.2804,3014.5,3014.4,0.472]
[1764187593538,0.7415,3014.5,3013.5,0.1272]
[1764187593840,0.78332098,3014.4,3013.3,0.00414799]
[1764187594042,0.78332933,3014.3,3013.3,0.00414799]
[1764187594244,0.4611,3013.4,3013.3,0.00414799]
[1764187594449,0.46377916,3013.4,3013.3,0.00414799]
[1764187595136,0.46377916,3013.4,3012.0,0.1451]
[1764187595338,3.08078493,3013.0,3011.2,0.16608]
[1764187595645,0.94878276,3012.9,3011.2,0.16608]
[1764187595946,0.78186718,3012.8,3011.2,0.16608]
[1764187596144,0.16599,3012.9,3011.2,0.16881627]
[1764187596344,2.80500998,3012.7,3011.2,0.00273627]
[1764187596837,2.97100998,3012.7,3011.2,0.00273627]
[1764187597037,0.2708,3012.5,3011.2,0.00273627]
[1764187597233,0.4545,3011.3,3009.0,0.2259]
[1764187597438,0.00497495,3011.0,3010.9,0.4539]
[1764187597841,1.34471629,3013.2,3011.9,0.4539]
[1764187598041,0.16598,3013.2,3011.9,0.4539]
[1764187598242,3.07905292,3013.0,3011.9,0.45796205]
[1764187598944,0.00324294,3013.0,3012.9,0.4539]
[1764187599344,0.00324294,3013.0,3012.6,0.00497495]
[1764187599747,0.00324294,3013.0,3012.9,0.4539]
[1764187600343,0.00324294,3013.0,3012.6,0.00497495]
[1764187600845,0.4545,3012.7,3012.6,0.00497495]
[1764187601646,0.4545,3012.7,3012.6,1e-08]
[1764187602746,0.00324294,3013.0,3012.6,1e-08]
[1764187602954,0.45774294,3013.0,3012.6,1e-08]
[1764187603750,0.00324294,3013.0,3012.6,1e-08]
[1764187605453,0.00324294,3013.0,3012.9,0.4539]
[1764187606149,0.2708,3014.0,3012.9,0.4539]
[1764187606150,0.2708,3014.0,3013.2,0.84577]
[1764187606351,0.2708,3014.0,3013.3,1.759]
[1764187606556,0.2708,3014.0,3013.3,3.064]
[1764187606947,0.2708,3014.5,3013.3,3.064]
[1764187607148,0.00497495,3014.2,3013.2,0.2259]
[1764187607345,0.00497495,3014.2,3013.4,0.653]
[1764187607754,0.00497495,3014.2,3014.1,0.4539]
[1764187608063,0.00497495,3014.2,3014.1,0.45814263]
[1764187608352,9.59265235,3014.2,3012.6,0.14510001]
[1764187608550,0.43675,3013.8,3012.7,2.234]
[1764187609350,0.43675,3013.8,3012.7,2.2375199]
[1764187609555,0.43675,3013.8,3012.8,2.917]
[1764187610244,0.2708,3013.8,3012.7,0.0035199]
[1764187610445,0.2708,3013.2,3012.7,0.0035199]
[1764187612146,0.4545,3012.8,3012.7,0.0035199]
[1764187613746,0.2708,3013.2,3012.7,0.0035199]
[1764187613944,0.78681448,3013.1,3012.7,0.0035199]
[1764187614149,0.78681448,3013.0,3012.7,0.0035199]
[1764187614348,0.78688796,3012.9,3012.7,0.0035199]
[1764187614550,0.2708,3013.2,3012.7,0.0035199]
[1764187614859,0.7871724,3013.1,3012.7,0.0035199]
[1764187615156,0.7871724,3013.0,3012.9,0.4539]
[1764187615344,0.7871724,3013.0,3012.7,0.0035199]
[1764187615548,0.2708,3013.5,3012.7,0.0035199]
[1764187615750,0.78776534,3013.4,3013.3,0.4539]
[1764187616151,0.78776534,3013.4,3012.7,0.0035199]
[1764187616356,0.78776534,3013.3,3013.2,0.4539]
[1764187617251,0.78803685,3013.3,3013.2,0.4539]
[1764187617751,1.44953629,3013.8,3013.2,0.4539]
[1764187617953,0.78805184,3013.7,3013.2,0.4539]
[1764187618154,0.2708,3013.5,3013.2,0.4539]
[1764187618355,0.78805184,3013.4,3013.2,0.4539]
[1764187618551,0.78823759,3013.3,3012.8,0.166]
[1764187618752,0.2708,3013.5,3012.8,0.872]
[1764187618961,0.78822734,3013.4,3012.8,0.872]
[1764187619153,0.78822734,3013.3,3012.8,0.872]
[1764187619353,0.2708,3013.5,3012.8,0.872]
[1764187619553,0.7884356,3013.4,3012.8,0.872]
[1764187619754,0.7884356,3013.3,3013.2,0.4539]
[1764187619954,0.2708,3013.8,3013.2,0.4539]
[1764187620155,0.78842669,3013.7,3013.6,0.4539]
[1764187620757,1.24292669,3013.7,3013.1,0.772]
[1764187620957,0.78842669,3013.6,3013.1,0.772]
[1764187621159,1.05922669,3013.5,3013.1,0.772]
[1764187621360,0.78848702,3013.4,3013.0,2.36]
[1764187621561,0.78848702,3013.3,3013.0,2.36]
[1764187621756,0.78848702,3013.3,3012.7,0.0035199]
[1764187621757,0.2708,3013.5,3012.8,3.152]
[1764187622062,0.78839036,3013.4,3012.8,3.152]
[1764187622258,0.2708,3013.5,3012.8,3.152]
[1764187622259,0.78839036,3013.3,3012.8,3.152]
[1764187622461,0.78839036,3013.2,3012.8,3.152]
[1764187622661,0.2708,3013.5,3012.8,3.152]
[1764187622863,0.78873722,3013.4,3012.8,3.152]
[1764187623064,0.78873722,3013.3,3012.8,3.152]
[1764187623259,1.24323722,3013.2,3012.8,3.299]
[1764187623465,0.2708,3013.0,3012.8,3.299]
[1764187624562,0.2708,3013.0,3012.7,0.0035199]
[1764187624760,0.4545,3012.8,3012.7,0.0035199]
[1764187625961,0.2708,3013.0,3012.7,0.4574199]
[1764187626156,1.44953629,3013.5,3012.9,0.4555]
[1764187626360,0.78830224,3013.4,3012.9,0.4555]
[1764187626560,0.78830224,3013.3,3012.9,0.4555]
[1764187626869,0.78830224,3013.2,3013.1,0.4509]
[1764187627265,0.78855915,3013.4,3013.3,0.4509]
[1764187627467,1.96784934,3013.7,3013.3,0.4509]
[1764187627765,0.78911305,3013.6,3013.5,0.4509]
[1764187627967,1.18371124,3014.2,3013.9,0.4509]
[1764187628164,0.78171492,3014.1,3014.0,0.4509]
[1764187628467,0.2714,3014.0,3013.2,0.9]
[1764187628864,0.2714,3014.0,3013.0,3.4695]
[1764187629969,0.2714,3014.0,3013.0,0.1855]
[1764187630172,0.2714,3014.0,3013.0,1.0435]
[1764187630666,0.2714,3014.0,3013.0,0.9755]
[1764187631073,0.00497495,3014.2,3013.9,0.4509]
[1764187631581,3.70094998,3014.0,3012.7,0.0035199]
[1764187631770,4.87968627,3014.0,3012.7,0.0035199]
[1764187631964,0.4586,3012.8,3012.7,0.0035199]
[1764187632363,0.2714,3013.5,3012.7,0.4544199]
[1764187632972,0.16597,3013.4,3012.7,0.4544199]
[1764187633471,1.17873629,3013.3,3012.7,0.4544199]
[1764187633669,0.4586,3012.8,3012.7,0.4544199]
[1764187633864,0.2714,3013.0,3012.7,0.4544199]
[1764187634263,1.17873629,3013.5,3013.3,0.4509]
[1764187634468,1.17873629,3013.9,3013.4,0.4509]
[1764187635570,0.73,3013.5,3012.7,0.0035199]
[1764187635769,0.73,3013.5,3012.8,1.911]
[1764187636076,1.90873629,3013.5,3012.7,0.0035199]
[1764187636279,1.45013629,3013.5,3012.7,0.0035199]
[1764187636470,1.17873629,3013.4,3012.7,0.0035199]
[1764187636671,1.45013629,3013.5,3012.7,0.0035199]
[1764187637171,0.4586,3012.8,3012.7,0.0035199]
[1764187637677,0.2714,3013.5,3012.9,0.4509]
[1764187639273,0.2714,3013.5,3013.0,0.2806]
[1764187639477,0.16594,3013.9,3013.4,0.4509]
[1764187639779,0.73,3013.5,3012.8,1.78669726]
[1764187640076,0.73,3013.5,3012.7,1.79021716]
[1764187640262,0.73,3013.5,3012.7,0.0035199]